fUSD/lending_fUSD_20250923
["ID","MTS","AMOUNT","RATE_DAILY","PERIOD"]
[387254209,1758664461077,-307.38239011,0.00029589,3]
[387254210,1758664461087,-560.54,0.00029589,3]
[387254211,1758664461096,-1073.37,0.00029589,3]
[387254212,1758664461107,-753.1,0.00029589,3]
[387254213,1758664461116,-545.97,0.00029589,3]
[387254214,1758664461126,-400.0,0.00029589,3]
[387254215,1758664461136,-400.0,0.00029589,3]
[387254216,1758664461146,-580.05,0.00029589,3]
[387254217,1758664461155,-1196.06,0.00029589,3]
[387254218,1758664461165,-779.4,0.00029589,3]
[387254219,1758664461174,-1387.31,0.00029589,3]
[387254220,1758664461184,-526.44,0.00029589,3]
[387254221,1758664461194,-914.9,0.00029589,3]
[387254222,1758664461204,-751.05,0.00029589,3]
[387254223,1758664461214,-400.0,0.00029589,3]
[387254224,1758664461223,-585.69,0.00029589,3]
[387254225,1758664461233,-10481.21,0.00029589,3]
[387254226,1758664461243,-1075.59,0.00029589,3]
[387254227,1758664461253,-1243.9,0.00029589,3]
[387254228,1758664461263,-2675.56,0.00029589,3]
[387254229,1758664461273,-400.0,0.00029589,3]
[387254230,1758664461283,-603.56,0.00029589,3]
[387254231,1758664461293,-1687.56,0.00029589,3]
[387254232,1758664461303,-613.2,0.00029589,3]
[387254233,1758664461313,-1380.17,0.00029589,3]
[387254234,1758664461323,-369.60044262,0.00029589,3]
[387254235,1758664461333,-366.18776385,0.00029589,3]
[387254236,1758664461343,-1984.04,0.00029589,3]
[387254237,1758664461353,-637.31,0.00029589,3]
[387254238,1758664461363,-536.31,0.00029589,3]
[387254239,1758664461372,-1960.16,0.00029589,3]
[387254240,1758664461382,-653.4,0.00029589,3]
[387254241,1758664461391,-260.56718233,0.00029589,3]
[387254242,1758664461401,-1811.83,0.00029589,3]
[387254243,1758664461411,-485.31,0.00029589,3]
[387254244,1758664461422,-609.4,0.00029589,3]
[387254245,1758664461432,-1777.36,0.00029589,3]
[387254246,1758664461441,-3596.07,0.00029589,3]
[387254247,1758664461451,-955.0,0.00029589,3]
[387254248,1758664461463,-1530.13,0.00029589,3]
[387254249,1758664461473,-400.0,0.00029589,3]
[387254250,1758664461484,-1065.12,0.00029589,3]
[387254251,1758664461495,-624.46,0.00029589,3]
[387254252,1758664461505,-668.62,0.00029589,3]
[387254253,1758664461515,-766.88,0.00029589,3]
[387254254,1758664461524,-488.82,0.00029589,3]
[387254255,1758664461534,-1866.98,0.00029589,3]
[387254256,1758664461544,-674.88,0.00029589,3]
[387254257,1758664461559,-507.6,0.00029589,3]
[387254258,1758664461571,-1430.39,0.00029589,3]
[387254259,1758664461582,-1005.24,0.00029589,3]
[387254260,1758664461592,-2251.93,0.00029589,3]
[387254261,1758664461602,-706.55,0.00029589,3]
[387254262,1758664461612,-471.06,0.00029589,3]
[387254263,1758664461622,-440.49,0.00029589,3]
[387254264,1758664461632,-1632.87,0.00029589,3]
[387254265,1758664461642,-2172.06,0.00029589,3]
[387254266,1758664461652,-1577.53,0.00029589,3]
[387254267,1758664461661,-573.43,0.00029589,3]
[387254268,1758664461672,-1762.21,0.00029589,3]
[387254269,1758664461688,-2598.87,0.00029589,3]
[387254270,1758664461698,-2106.48,0.00029589,3]
[387254271,1758664461709,-2137.16,0.00029589,3]
[387254272,1758664461724,-1633.99,0.00029589,3]
[387254273,1758664461734,-665.33,0.00029589,3]
[387254274,1758664461744,-400.0,0.00029589,3]
[387254275,1758664461753,-507.04,0.00029589,3]
[387254276,1758664461763,-652.14,0.00029589,3]
[387254277,1758664461772,-441.78,0.00029589,3]
[387254278,1758664461781,-2095.57,0.00029589,3]
[387254279,1758664461791,-2272.09,0.00029589,3]
[387254280,1758664461801,-2047.84,0.00029589,3]
[387254281,1758664461811,-425.92,0.00029589,3]
[387254282,1758664461820,-782.31,0.00029589,3]
[387254283,1758664461830,-1845.88,0.00029589,3]
[387254284,1758664461840,-1531.58,0.00029589,3]
[387254285,1758664461850,-1188.08,0.00029589,3]
[387254286,1758664461860,-1490.46,0.00029589,3]
[387254287,1758664461870,-2033.65,0.00029589,3]
[387254288,1758664461879,-2177.65,0.00029589,3]
[387254289,1758664461888,-2728.22,0.00029589,3]
[387254290,1758664461898,-680.61,0.00029589,3]
[387254291,1758664461908,-1405.11,0.00029589,3]
[387254292,1758664461918,-1113.08,0.00029589,3]
[387254293,1758664461927,-1415.66,0.00029589,3]
[387254294,1758664461937,-1698.64,0.00029589,3]
[387254295,1758664461947,-1312.62,0.00029589,3]
[387254296,1758664461957,-769.12,0.00029589,3]
[387254297,1758664461967,-1079.65,0.00029589,3]
[387254298,1758664461976,-295.17243692,0.00029589,3]
[387254299,1758664461986,-916.94,0.00029589,3]
[387254300,1758664461996,-2186.72,0.00029589,3]
[387254301,1758664462005,-546.81,0.00029589,3]
[387254302,1758664462014,-952.65,0.00029589,3]
[387254303,1758664462024,-485.45,0.00029589,3]
[387254304,1758664462034,-643.52,0.00029589,3]
[387254305,1758664462043,-1538.99,0.00029589,3]
[387254306,1758664462053,-400.0,0.00029589,3]
[387254307,1758664462062,-767.66,0.00029589,3]
[387254308,1758664462072,-1510.65,0.00029589,3]
[387254309,1758664462082,-1183.46,0.00029589,3]
[387254310,1758664462091,-1025.71,0.00029589,3]
[387254311,1758664462100,-1292.75,0.00029589,3]
[387254312,1758664462109,-1576.62,0.00029589,3]
[387254313,1758664462118,-589.78,0.00029589,3]
[387254314,1758664462128,-2168.52,0.00029589,3]
[387254315,1758664462137,-1248.87,0.00029589,3]
[387254316,1758664462146,-1438.1,0.00029589,3]
[387254317,1758664462156,-801.34,0.00029589,3]
[387254318,1758664462165,-408.05,0.00029589,3]
[387254319,1758664462174,-400.0,0.00029589,3]
[387254320,1758664462184,-1989.17,0.00029589,3]
[387254321,1758664462194,-1355.06,0.00029589,3]
[387254322,1758664462203,-1742.92,0.00029589,3]
[387254323,1758664462212,-1035.45,0.00029589,3]
[387254324,1758664462221,-466.56,0.00029589,3]
[387254325,1758664462230,-1515.98,0.00029589,3]
[387254326,1758664462240,-1785.83,0.00029589,3]
[387254327,1758664462249,-254.44450573,0.00029589,3]
[387254328,1758664462259,-835.56,0.00029589,3]
[387254329,1758664462268,-1984.29,0.00029589,3]
[387254330,1758664462277,-1716.89,0.00029589,3]
[387254331,1758664462287,-635.55,0.00029589,3]
[387254332,1758664462296,-786.93,0.00029589,3]
[387254333,1758664462305,-645.64,0.00029589,3]
[387254334,1758664462315,-400.0,0.00029589,3]
[387254335,1758664462324,-2059.55,0.00029589,3]
[387254336,1758664462333,-1514.01,0.00029589,3]
[387254337,1758664462343,-2306.45,0.00029589,3]
[387254338,1758664462352,-400.0,0.00029589,3]
[387254339,1758664462361,-1545.45,0.00029589,3]
[387254340,1758664462370,-2095.63,0.00029589,3]
[387254341,1758664462380,-1430.02,0.00029589,3]
[387254342,1758664462389,-909.31,0.00029589,3]
[387254343,1758664462398,-1827.73,0.00029589,3]
[387254344,1758664462408,-690.64,0.00029589,3]
[387254345,1758664462418,-2101.8,0.00029589,3]
[387254346,1758664462429,-966.9,0.00029589,3]
[387254347,1758664462439,-655.71,0.00029589,3]
[387254348,1758664462448,-1470.41,0.00029589,3]
[387254349,1758664462458,-603.72,0.00029589,3]
[387254350,1758664462467,-166.7392751,0.00029589,3]
[387254351,1758664462477,-5585.99,0.00029589,3]
[387254352,1758664462487,-1883.8,0.00029589,3]
[387254353,1758664462498,-1867.36,0.00029589,3]
[387254354,1758664462508,-1963.55,0.00029589,3]
[387254355,1758664462517,-614.58,0.00029589,3]
[387254356,1758664462527,-952.78,0.00029589,3]
[387254357,1758664462536,-400.0,0.00029589,3]
[387254358,1758664462546,-1560.6,0.00029589,3]
[387254359,1758664462556,-1953.23,0.00029589,3]
[387254360,1758664462565,-1674.22,0.00029589,3]
[387254361,1758664462575,-492.65,0.00029589,3]
[387254362,1758664462585,-924.37,0.00029589,3]
[387254363,1758664462594,-1508.32,0.00029589,3]
[387254364,1758664462604,-1865.08,0.00029589,3]
[387254365,1758664462613,-1262.69,0.00029589,3]
[387254366,1758664462623,-1502.94,0.00029589,3]
[387254367,1758664462633,-1473.52,0.00029589,3]
[387254368,1758664462642,-1344.24,0.00029589,3]
[387254369,1758664462657,-957.08,0.00029589,3]
[387254370,1758664462667,-528.66,0.00029589,3]
[387254371,1758664462676,-552.31,0.00029589,3]
[387254372,1758664462686,-2161.43,0.00029589,3]
[387254373,1758664462695,-2128.27,0.00029589,3]
[387254374,1758664462704,-943.67,0.00029589,3]
[387254375,1758664462714,-698.14,0.00029589,3]
[387254376,1758664462723,-956.83,0.00029589,3]
[387254377,1758664462733,-1587.02,0.00029589,3]
[387254378,1758664462742,-428.71,0.00029589,3]
[387254379,1758664462751,-1021.78,0.00029589,3]
[387254380,1758664462760,-1854.69,0.00029589,3]
[387254381,1758664462770,-533.26,0.00029589,3]
[387254382,1758664462780,-7304.35,0.00029589,3]
[387254383,1758664462789,-675.91,0.00029589,3]
[387254384,1758664462799,-1334.3,0.00029589,3]
[387254385,1758664462809,-447.62,0.00029589,3]
[387254386,1758664462818,-803.81,0.00029589,3]
[387254387,1758664462827,-400.0,0.00029589,3]
[387254388,1758664462836,-2319.15,0.00029589,3]
[387254389,1758664462845,-400.0,0.00029589,3]
[387254390,1758664462854,-1143.73,0.00029589,3]
[387254391,1758664462864,-1693.96,0.00029589,3]
[387254392,1758664462873,-808.53,0.00029589,3]
[387254393,1758664462885,-1798.02,0.00029589,3]
[387254394,1758664462907,-400.0,0.00029589,3]
[387254395,1758664462925,-1265.14,0.00029589,3]
[387254396,1758664462946,-400.0,0.00029589,3]
[387254397,1758664462962,-493.9,0.00029589,3]
[387254398,1758664462979,-528.22,0.00029589,3]
[387254399,1758664462997,-1501.23,0.00029589,3]
[387254400,1758664463016,-400.0,0.00029589,3]
[387254401,1758664463037,-480.24,0.00029589,3]
[387254402,1758664463055,-400.0,0.00029589,3]
[387254403,1758664463073,-1303.69,0.00029589,3]
[387254404,1758664463088,-400.0,0.00029589,3]
[387254405,1758664463105,-1157.48,0.00029589,3]
[387254406,1758664463121,-810.26,0.00029589,3]
[387254407,1758664463137,-676.36,0.00029589,3]
[387254408,1758664463152,-923.87,0.00029589,3]
[387254409,1758664463176,-865.69,0.00029589,3]
[387254410,1758664463191,-1229.06,0.00029589,3]
[387254411,1758664463207,-645.83,0.00029589,3]
[387254412,1758664463222,-1798.6,0.00029589,3]
[387254413,1758664463238,-549.42,0.00029589,3]
[387254414,1758664463255,-404.28,0.00029589,3]
[387254415,1758664463269,-1589.65,0.00029589,3]
[387254416,1758664463285,-559.17,0.00029589,3]
[387254417,1758664463301,-1587.3,0.00029589,3]
[387254418,1758664463317,-1163.2,0.00029589,3]
[387254419,1758664463333,-536.97,0.00029589,3]
[387254420,1758664463349,-400.0,0.00029589,2]
[387254421,1758664463364,-2080.14,0.00029589,3]
[387254422,1758664463380,-529.51,0.00029589,3]
[387254423,1758664463395,-931.36,0.00029589,3]
[387254424,1758664463410,-1619.96,0.00029589,3]
[387254425,1758664463427,-453.19,0.00029589,3]
[387254426,1758664463441,-948.64,0.00029589,3]
[387254427,1758664463456,-400.0,0.00029589,3]
[387254428,1758664463473,-1551.51,0.00029589,3]
[387254429,1758664463489,-13739.2,0.00029589,3]
[387254430,1758664463505,-1871.37,0.00029589,3]
[387254431,1758664463521,-618.32,0.00029589,3]
[387254432,1758664463537,-458.91,0.00029589,3]
[387254433,1758664463553,-657.58,0.00029589,3]
[387254434,1758664463569,-400.0,0.00029589,3]
[387254435,1758664463585,-1848.91,0.00029589,3]
[387254436,1758664463601,-1506.02,0.00029589,3]
[387254437,1758664463616,-514.97,0.00029589,3]
[387254438,1758664463633,-400.0,0.00029589,3]
[387254439,1758664463649,-477.74,0.00029589,3]
[387254440,1758664463664,-400.0,0.00029589,3]
[387254441,1758664463679,-1395.95,0.00029589,3]
[387254442,1758664463694,-400.0,0.00029589,3]
[387254443,1758664463709,-1575.42,0.00029589,3]
[387254444,1758664463723,-1347.82,0.00029589,3]
[387254445,1758664463744,-1495.51,0.00029589,3]
[387254446,1758664463766,-525.32,0.00029589,3]
[387254447,1758664463781,-1907.27,0.00029589,3]
[387254448,1758664463797,-1023.51,0.00029589,3]
[387254449,1758664463813,-432.69,0.00029589,3]
[387254450,1758664463829,-1351.02,0.00029589,3]
[387254451,1758664463843,-880.27,0.00029589,3]
[387254452,1758664463859,-548.79,0.00029589,3]
[387254453,1758664463873,-786.35,0.00029589,3]
[387254454,1758664463888,-451.0,0.00029589,3]
[387254455,1758664463904,-1903.53,0.00029589,3]
[387254456,1758664463920,-702.83,0.00029589,3]
[387254457,1758664463936,-2096.52,0.00029589,3]
[387254458,1758664463952,-1019.97,0.00029589,3]
[387254459,1758664463967,-475.27,0.00029589,3]
[387254460,1758664463981,-696.03,0.00029589,3]
[387254461,1758664463996,-419.83,0.00029589,3]
[387254462,1758664464010,-529.1,0.00029589,3]
[387254463,1758664464025,-1931.45,0.00029589,3]
[387254464,1758664464040,-2252.15,0.00029589,3]
[387254465,1758664464056,-601.48,0.00029589,3]
[387254466,1758664464072,-450.0,0.00029589,3]
[387254467,1758664464087,-536.36,0.00029589,3]
[387254468,1758664464102,-516.75,0.00029589,3]
[387254469,1758664464116,-620.93,0.00029589,3]
[387254470,1758664464130,-2161.44,0.00029589,3]
[387254471,1758664464145,-803.72,0.00029589,3]
[387254472,1758664464159,-1607.31,0.00029589,3]
[387254473,1758664464174,-2098.36,0.00029589,3]
[387254474,1758664464190,-1788.33,0.00029589,3]
[387254475,1758664464206,-3658.05,0.00029589,3]
[387254476,1758664464222,-998.12,0.00029589,3]
[387254477,1758664464238,-1550.42,0.00029589,3]
[387254478,1758664464254,-1221.01,0.00029589,3]
[387254479,1758664464269,-1421.09,0.00029589,3]
[387254480,1758664464284,-1581.33,0.00029589,3]
[387254481,1758664464298,-1796.87,0.00029589,3]
[387254482,1758664464313,-510.18,0.00029589,3]
[387254483,1758664464328,-515.25,0.00029589,3]
[387254484,1758664464345,-230.50039672,0.00029589,3]
[387254485,1758664464360,-1366.95,0.00029589,3]
[387254486,1758664464375,-1983.1,0.00029589,3]
[387254487,1758664464389,-566.08,0.00029589,3]
[387254488,1758664464403,-1644.62,0.00029589,3]
[387254489,1758664464420,-703.73,0.00029589,3]
[387254490,1758664464438,-421.65,0.00029589,3]
[387254491,1758664464454,-712.53,0.00029589,3]
[387254492,1758664464470,-838.91,0.00029589,3]
[387254493,1758664464485,-400.0,0.00029589,3]
[387254494,1758664464501,-1691.7,0.00029589,3]
[387254495,1758664464517,-1746.85,0.00029589,3]
[387254496,1758664464533,-586.14,0.00029589,3]
[387254497,1758664464546,-2088.64,0.00029589,3]
[387254498,1758664464560,-400.0,0.00029589,3]
[387254499,1758664464574,-1208.42,0.00029589,3]
[387254500,1758664464588,-706.04,0.00029589,3]
[387254501,1758664464602,-1530.19,0.00029589,3]
[387254502,1758664464615,-2924.19,0.00029589,3]
[387254503,1758664464630,-12997.44,0.00029589,3]
[387254504,1758664464644,-1462.57,0.00029589,3]
[387254505,1758664464659,-1005.85,0.00029589,3]
[387254506,1758664464673,-2130.52,0.00029589,3]
[387254507,1758664464687,-7446.15,0.00029589,3]
[387254508,1758664464702,-621.18,0.00029589,3]
[387254509,1758664464718,-644.91,0.00029589,3]
[387254510,1758664464732,-1544.2,0.00029589,3]
[387254511,1758664464746,-613.5,0.00029589,3]
[387254512,1758664464761,-644.94,0.00029589,3]
[387254513,1758664464775,-924.07,0.00029589,3]
[387254514,1758664464789,-413.72,0.00029589,3]
[387254515,1758664464803,-1218.93,0.00029589,3]
[387254516,1758664464817,-472.05,0.00029589,3]
[387254517,1758664464832,-525.7,0.00029589,3]
[387254518,1758664464848,-400.0,0.00029589,3]
[387254519,1758664464864,-431.76,0.00029589,3]
[387254520,1758664464880,-501.11,0.00029589,3]
[387254521,1758664464894,-964.09,0.00029589,3]
[387254522,1758664464909,-523.06,0.00029589,3]
[387254523,1758664464923,-2926.65,0.00029589,3]
[387254524,1758664464937,-1583.89,0.00029589,3]
[387254525,1758664464951,-400.0,0.00029589,3]
[387254526,1758664464966,-1089.09,0.00029589,3]
[387254527,1758664464980,-400.0,0.00029589,3]
[387254528,1758664464994,-684.39,0.00029589,3]
[387254529,1758664465009,-453.77,0.00029589,3]
[387254530,1758664465023,-564.83,0.00029589,3]
[387254531,1758664465037,-814.85,0.00029589,3]
[387254532,1758664465052,-873.79,0.00029589,3]
[387254533,1758664465066,-10315.68,0.00029589,3]
[387254534,1758664465082,-548.44,0.00029589,3]
[387254535,1758664465096,-1681.09,0.00029589,3]
[387254536,1758664465112,-478.24,0.00029589,3]
[387254537,1758664465126,-1081.32,0.00029589,3]
[387254538,1758664465140,-490.24,0.00029589,3]
[387254539,1758664465154,-710.95,0.00029589,3]
[387254540,1758664465168,-852.97,0.00029589,3]
[387254541,1758664465183,-1874.55,0.00029589,3]
[387254542,1758664465198,-895.27,0.00029589,3]
[387254543,1758664465214,-532.39,0.00029589,3]
[387254544,1758664465229,-1448.24,0.00029589,3]
[387254545,1758664465244,-677.14,0.00029589,3]
[387254546,1758664465259,-2056.2,0.00029589,3]
[387254547,1758664465274,-443.95,0.00029589,3]
[387254548,1758664465288,-1886.51,0.00029589,3]
[387254549,1758664465302,-1804.22,0.00029589,3]
[387254550,1758664465318,-1803.32,0.00029589,3]
[387254551,1758664465334,-1527.7,0.00029589,3]
[387254552,1758664465349,-1120.28,0.00029589,3]
[387254553,1758664465364,-517.83,0.00029589,3]
[387254554,1758664465380,-400.0,0.00029589,3]
[387254555,1758664465395,-524.16,0.00029589,3]
[387254556,1758664465409,-2362.16,0.00029589,3]
[387254557,1758664465427,-3343.32,0.00029589,3]
[387254558,1758664465442,-1564.43,0.00029589,3]
[387254559,1758664465456,-2055.82,0.00029589,3]
[387254560,1758664465475,-400.0,0.00029589,3]
[387254561,1758664465490,-2920.55,0.00029589,3]
[387254562,1758664465506,-485.4,0.00029589,3]
[387254563,1758664465522,-1036.13,0.00029589,3]
[387254564,1758664465538,-542.94,0.00029589,3]
[387254565,1758664465552,-2377.65,0.00029589,3]
[387254566,1758664465568,-3270.38,0.00029589,3]
[387254567,1758664465582,-4398.6,0.00029589,3]
[387254568,1758664465596,-1866.28,0.00029589,3]
[387254569,1758664465612,-400.0,0.00029589,3]
[387254570,1758664465626,-491.17,0.00029589,3]
[387254571,1758664465642,-1774.73,0.00029589,3]
[387254572,1758664465658,-1493.5,0.00029589,3]
[387254573,1758664465672,-441.23,0.00029589,3]
[387254574,1758664465688,-872.02,0.00029589,3]
[387254575,1758664465702,-2733.93,0.00029589,3]
[387254576,1758664465717,-2206.4,0.00029589,3]
[387254577,1758664465732,-841.18,0.00029589,3]
[387254578,1758664465745,-1970.71,0.00029589,3]
[387254579,1758664465760,-438.69702446,0.00029589,3]
[387254580,1758664465775,-1182.93,0.00029589,3]
[387254581,1758664465792,-3675.81,0.00029589,3]
[387254582,1758664465808,-566.5,0.00029589,3]
[387254583,1758664465823,-660.51,0.00029589,3]
[387254584,1758664465837,-469.2,0.00029589,3]
[387254585,1758664465851,-1466.11,0.00029589,3]
[387254586,1758664465866,-515.64,0.00029589,3]
[387254587,1758664465880,-535.19,0.00029589,3]
[387254588,1758664465894,-788.86,0.00029589,3]
[387254589,1758664465908,-1923.86,0.00029589,3]
[387254590,1758664465921,-493.51,0.00029589,3]
[387254591,1758664465937,-12445.83,0.00029589,3]
[387254592,1758664465952,-770.57,0.00029589,3]
[387254593,1758664465968,-681.58,0.00029589,3]
[387254594,1758664465982,-1593.87,0.00029589,3]
[387254595,1758664465997,-3103.88,0.00029589,3]
[387254596,1758664466012,-1657.6,0.00029589,3]
[387254597,1758664466027,-1375.02,0.00029589,3]
[387254598,1758664466043,-2705.96,0.00029589,3]
[387254599,1758664466058,-4394.25,0.00029589,3]
[387254600,1758664466072,-1354.9,0.00029589,3]
[387254601,1758664466088,-483.59,0.00029589,3]
[387254602,1758664466102,-2718.14,0.00029589,3]
[387254603,1758664466117,-1525.42,0.00029589,3]
[387254604,1758664466132,-1801.89,0.00029589,3]
[387254605,1758664466146,-506.66,0.00029589,3]
[387254606,1758664466160,-616.12,0.00029589,3]
[387254607,1758664466175,-1080.71,0.00029589,3]
[387254608,1758664466190,-8925.42,0.00029589,3]
[387254609,1758664466205,-1946.95,0.00029589,3]
[387254610,1758664466219,-537.74,0.00029589,3]
[387254611,1758664466234,-693.58,0.00029589,3]
[387254612,1758664466249,-778.13,0.00029589,3]
[387254613,1758664466264,-6607.03,0.00029589,3]
[387254614,1758664466279,-1718.13,0.00029589,3]
[387254615,1758664466294,-1594.83,0.00029589,3]
[387254616,1758664466310,-487.88,0.00029589,3]
[387254617,1758664466324,-1594.41,0.00029589,3]
[387254618,1758664466338,-779.18,0.00029589,3]
[387254619,1758664466352,-3295.49,0.00029589,3]
[387254620,1758664466367,-1328.48,0.00029589,3]
[387254621,1758664466381,-2770.64,0.00029589,3]
[387254622,1758664466397,-720.33,0.00029589,3]
[387254623,1758664466411,-1145.93,0.00029589,3]
[387254624,1758664466430,-711.94,0.00029589,3]
[387254625,1758664466446,-3077.98,0.00029589,3]
[387254626,1758664466460,-560.56,0.00029589,3]
[387254627,1758664466475,-2609.15,0.00029589,3]
[387254628,1758664466490,-1601.89,0.00029589,3]
[387254629,1758664466507,-1532.57,0.00029589,3]
[387254630,1758664466521,-470.81,0.00029589,3]
[387254631,1758664466536,-473.85,0.00029589,3]
[387254632,1758664466551,-1583.84,0.00029589,3]
[387254633,1758664466566,-736.9,0.00029589,3]
[387254634,1758664466581,-2011.79,0.00029589,3]
[387254635,1758664466596,-444.2,0.00029589,3]
[387254636,1758664466611,-1424.75,0.00029589,3]
[387254637,1758664466626,-814.88,0.00029589,3]
[387254638,1758664466640,-1854.54,0.00029589,3]
[387254639,1758664466655,-1011.39,0.00029589,3]
[387254640,1758664466669,-7260.11,0.00029589,3]
[387254641,1758664466683,-2063.59,0.00029589,3]
[387254642,1758664466697,-667.22,0.00029589,3]
[387254643,1758664466711,-821.38,0.00029589,3]
[387254644,1758664466726,-746.48,0.00029589,3]
[387254645,1758664466741,-1885.78,0.00029589,3]
[387254646,1758664467302,-1320.39,0.00029589,3]
[387254647,1758664467321,-1989.15,0.00029589,3]
[387254648,1758664467330,-403.83,0.00029589,3]
[387254649,1758664467339,-400.0,0.00029589,3]
[387254650,1758664467349,-723.28,0.00029589,3]
[387254651,1758664467357,-1086.66,0.00029589,3]
[387254652,1758664467366,-561.18,0.00029589,3]
[387254653,1758664467375,-1260.0,0.00029589,3]
[387254654,1758664467384,-3598.37,0.00029589,3]
[387254655,1758664467395,-502.26,0.00029589,3]
[387254656,1758664467404,-1474.59,0.00029589,3]
[387254657,1758664467415,-446.96,0.00029589,3]
[387254658,1758664467429,-506.33,0.00029589,3]
[387254659,1758664467439,-506.24,0.00029589,3]
[387254660,1758664467448,-2702.29,0.00029589,3]
[387254661,1758664467458,-1721.72,0.00029589,3]
[387254662,1758664467469,-1424.01,0.00029589,3]
[387254663,1758664467479,-670.32,0.00029589,3]
[387254664,1758664467490,-1420.11,0.00029589,3]
[387254665,1758664467501,-1056.56,0.00029589,3]
[387254666,1758664467511,-1620.58,0.00029589,3]
[387254667,1758664467520,-1331.6,0.00029589,3]
[387254668,1758664467529,-1563.82,0.00029589,3]
[387254669,1758664467539,-749.44,0.00029589,3]
[387254670,1758664467548,-760.02,0.00029589,3]
[387254671,1758664467558,-1527.26,0.00029589,3]
[387254672,1758664467567,-2954.78,0.00029589,3]
[387254673,1758664467576,-1966.97,0.00029589,3]
[387254674,1758664467585,-655.81,0.00029589,3]
[387254675,1758664467594,-1062.51,0.00029589,3]
[387254676,1758664467603,-3361.37,0.00029589,3]
[387254677,1758664467613,-691.42,0.00029589,3]
[387254678,1758664467622,-4579.98,0.00029589,3]
[387254679,1758664467631,-588.0,0.00029589,3]
[387254680,1758664467642,-2353.38,0.00029589,3]
[387254681,1758664467652,-426.64,0.00029589,3]
[387254682,1758664467662,-891.93,0.00029589,3]
[387254683,1758664467671,-836.0,0.00029589,3]
[387254684,1758664467680,-1342.02,0.00029589,3]
[387254685,1758664467690,-2297.98,0.00029589,3]
[387254686,1758664467699,-557.1,0.00029589,3]
[387254687,1758664467708,-430.82,0.00029589,3]
[387254688,1758664467718,-2148.78,0.00029589,3]
[387254689,1758664467727,-11455.47,0.00029589,3]
[387254690,1758664467737,-400.0,0.00029589,3]
[387254691,1758664467746,-1798.01,0.00029589,3]
[387254692,1758664467755,-984.5,0.00029589,3]
[387254693,1758664467764,-2944.68,0.00029589,3]
[387254694,1758664467774,-484.76538292,0.00029589,3]
[387254695,1758664467783,-400.0,0.00029589,3]
[387254696,1758664467792,-1120.22,0.00029589,3]
[387254697,1758664467802,-400.0,0.00029589,3]
[387254698,1758664467811,-1488.78,0.00029589,3]
[387254699,1758664467821,-8056.28,0.00029589,3]
[387254700,1758664467830,-2673.31,0.00029589,3]
[387254701,1758664467840,-403.19,0.00029589,3]
[387254702,1758664467849,-1898.09,0.00029589,3]
[387254703,1758664467858,-2196.12,0.00029589,3]
[387254704,1758664467867,-736.09,0.00029589,3]
[387254705,1758664467877,-509.42,0.00029589,3]
[387254706,1758664467887,-1729.78,0.00029589,3]
[387254707,1758664467896,-858.26,0.00029589,3]
[387254708,1758664467905,-944.83,0.00029589,3]